bitfinex/quotes_ETHUSD_20230405
["timestamp","ask_amount","ask_price","bid_price","bid_amount"]
[1680692421182,11.45211838,1912.4,1912.3,3.26178967]
[1680692421381,12.4522086,1912.4,1912.3,0.26178967]
[1680692421586,12.4522086,1912.4,1912.2,2.2]
[1680692421886,1.24522086,1912.3,1912.0,0.002]
[1680692422181,1.24522086,1912.3,1911.9,2.22013789]
[1680692422365,0.12452209,1912.2,1911.9,0.12733646]
[1680692423773,0.12452209,1912.2,1912.0,2.2]
[1680692425273,1.25122086,1912.3,1912.0,2.2]
[1680692425481,0.555,1912.2,1912.0,2.2]
[1680692425667,0.561,1912.2,1912.0,2.2]
[1680692428794,1.116,1912.2,1912.0,2.2]
[1680692432278,1.671,1912.2,1912.0,2.2]
[1680692432477,1.96262209,1912.2,1912.0,2.2]
[1680692435683,2.51762209,1912.2,1912.0,2.2]
[1680692439131,3.07262209,1912.2,1912.0,2.2]
[1680692439833,3.05262209,1912.2,1912.0,2.2]
[1680692440027,3.04662209,1912.2,1912.0,2.2]
[1680692440334,2.755,1912.2,1912.0,2.2]
[1680692442444,3.31,1912.2,1912.0,2.2]
[1680692446004,3.865,1912.2,1912.0,2.2]
[1680692449446,4.42,1912.2,1912.0,2.2]
[1680692449644,4.42,1912.2,1912.0,2.20552594]
[1680692450010,4.32,1912.2,1912.0,2.20552594]
[1680692450547,4.32,1912.2,1912.0,3.90552594]
[1680692450863,4.32,1912.2,1912.1,3.0]
[1680692453061,4.875,1912.2,1912.1,3.0]
[1680692453819,4.775,1912.2,1912.1,3.0]
[1680692455023,4.725,1912.2,1912.1,3.0]
[1680692456551,5.28,1912.2,1912.1,3.0]
[1680692457955,5.23,1912.2,1912.1,3.0]
[1680692459830,5.785,1912.2,1912.1,3.0]
[1680692461666,5.735,1912.2,1912.1,3.0]
[1680692463228,6.29,1912.2,1912.1,3.0]
[1680692463943,6.9198,1912.2,1912.1,3.0]
[1680692464143,6.9198,1912.2,1912.0,1.70752594]
[1680692464376,6.9198,1912.2,1912.0,1.7]
[1680692465460,6.9258,1912.2,1912.0,1.7]
[1680692466637,7.4248,1912.2,1912.0,1.70552594]
[1680692466973,0.74248,1912.1,1912.0,1.7]
[1680692467174,0.74248,1912.1,1912.0,1.70552594]
[1680692469659,6.797,1912.2,1912.0,1.70552594]
[1680692469871,6.795,1912.2,1912.0,1.7]
[1680692470105,7.35,1912.2,1912.0,1.7]
[1680692470379,7.3,1912.2,1912.0,1.7]
[1680692473696,7.855,1912.2,1912.0,1.7]
[1680692474861,7.755,1912.2,1912.0,1.7]
[1680692476300,7.755,1912.2,1912.0,3.90552594]
[1680692476599,7.755,1912.2,1912.1,3.0]
[1680692476757,7.755,1912.2,1912.1,3.00552594]
[1680692477266,8.31,1912.2,1912.1,3.00552594]
[1680692480172,8.26,1912.2,1912.1,3.0]
[1680692480589,8.815,1912.2,1912.1,3.0]
[1680692482369,7.815,1912.2,1912.1,3.0]
[1680692482797,7.815,1912.2,1912.1,3.26178967]
[1680692483098,7.815,1912.2,1912.1,3.26731561]
[1680692483785,7.715,1912.2,1912.1,3.26178967]
[1680692483978,8.27,1912.2,1912.1,3.26731561]
[1680692487406,8.22,1912.2,1912.1,3.26178967]
[1680692487614,8.775,1912.2,1912.1,3.26178967]
[1680692487914,8.775,1912.2,1912.1,3.26731561]
[1680692488577,8.775,1912.2,1912.1,3.26178967]
[1680692488780,8.775,1912.2,1912.1,3.26731561]
[1680692489582,8.775,1912.2,1912.1,3.26178967]
[1680692490528,8.775,1912.2,1912.1,3.26731561]
[1680692490906,8.775,1912.2,1912.1,3.26178967]
[1680692491103,9.33,1912.2,1912.1,3.26178967]
[1680692492979,9.33,1912.2,1912.1,3.26578967]
[1680692493183,9.33,1912.2,1912.1,3.26731561]
[1680692493419,9.33,1912.2,1912.1,3.26331561]
[1680692493617,9.33,1912.2,1912.1,3.26178967]
[1680692493818,9.33,1912.2,1912.1,3.26731561]
[1680692494116,9.54997153,1912.2,1912.1,3.26178967]
[1680692494625,10.10497153,1912.2,1912.1,3.26178967]
[1680692495136,10.11097153,1912.2,1912.1,3.16178967]
[1680692497645,10.11097153,1912.2,1912.1,2.9]
[1680692498192,10.66597153,1912.2,1912.1,2.9]
[1680692501647,11.22097153,1912.2,1912.1,2.9]
[1680692502836,11.22097153,1912.2,1912.1,3.16178967]
[1680692505314,11.77597153,1912.2,1912.1,3.16178967]
[1680692506925,11.77597153,1912.2,1912.1,5.36178967]
[1680692507132,11.77597153,1912.2,1912.1,5.36378967]
[1680692508962,11.77597153,1912.2,1912.1,5.37596268]
[1680692509165,12.33097153,1912.2,1912.1,5.77663973]
[1680692510235,12.32497153,1912.2,1912.1,6.01216567]
[1680692510852,12.32497153,1912.2,1912.1,5.34969895]
[1680692511051,12.32497153,1912.2,1912.1,5.61101899]
[1680692512690,12.87997153,1912.2,1912.1,5.61101899]
[1680692513568,12.87997153,1912.2,1912.1,5.59884598]
[1680692513744,11.01797153,1912.2,1912.1,5.59884598]
[1680692514356,9.60722153,1912.2,1912.1,5.59884598]
[1680692514556,9.32388153,1912.2,1912.1,5.59884598]
[1680692516088,9.87888153,1912.2,1912.1,5.59884598]
[1680692516954,9.69155953,1912.2,1912.1,14.26701899]
[1680692517169,9.68012953,1912.2,1912.1,14.26701899]
[1680692517538,9.68012953,1912.2,1912.1,15.93319984]
[1680692517775,9.42131895,1912.2,1912.1,16.51177914]
[1680692517951,9.20134742,1912.2,1912.1,16.51177914]
[1680692518151,9.20134742,1912.2,1912.1,15.93319984]
[1680692519553,9.75634742,1912.2,1912.1,15.93319984]
[1680692520474,9.75634742,1912.2,1912.1,20.93319984]
[1680692520947,9.75634742,1912.2,1912.1,15.93319984]
[1680692521585,9.75634742,1912.2,1912.1,20.93319984]
[1680692521954,9.96307224,1912.2,1912.1,22.46161725]
[1680692523153,10.51807224,1912.2,1912.1,22.46161725]
[1680692523965,10.62500545,1912.2,1912.1,22.46161725]
[1680692524777,10.49645929,1912.2,1912.1,23.04019655]
[1680692526151,10.49645929,1912.2,1912.1,22.46161725]
[1680692526556,11.05145929,1912.2,1912.1,22.46161725]
[1680692528598,10.84209929,1912.2,1912.1,22.46161725]
[1680692528762,10.80000929,1912.2,1912.1,22.46161725]
[1680692528958,10.48635126,1912.2,1912.1,22.46161725]
[1680692529200,10.46943126,1912.2,1912.1,22.46161725]
[1680692529499,10.45251126,1912.2,1912.1,23.04019655]
[1680692529994,11.00751126,1912.2,1912.1,23.04019655]
[1680692530763,10.87906039,1912.2,1912.1,23.04019655]
[1680692531101,11.19314454,1912.2,1912.1,23.04019655]
[1680692532076,5.77180454,1912.2,1912.1,23.04019655]
[1680692533005,5.45772039,1912.2,1912.1,23.04019655]
[1680692533296,5.45772039,1912.2,1912.1,20.84019655]
[1680692533500,6.01272039,1912.2,1912.1,20.84019655]
[1680692535737,5.76695039,1912.2,1912.1,20.84019655]
[1680692536932,6.32195039,1912.2,1912.1,20.84019655]
[1680692537095,6.26258039,1912.2,1912.1,20.84019655]
[1680692538705,6.26058039,1912.2,1912.1,20.84019655]
[1680692540632,6.81558039,1912.2,1912.1,20.84019655]
[1680692541022,5.55,1912.2,1912.1,20.84019655]
[1680692541231,2.61149331,1912.2,1912.1,20.26161725]
[1680692544011,3.16649331,1912.2,1912.1,20.26161725]
[1680692546043,3.00673986,1912.2,1912.1,20.26161725]
[1680692547313,3.56173986,1912.2,1912.1,20.26161725]
[1680692550673,4.11673986,1912.2,1912.1,20.26161725]
[1680692551360,4.11673986,1912.2,1912.1,20.84019655]
[1680692554175,4.67173986,1912.2,1912.1,20.84019655]
[1680692557766,5.22673986,1912.2,1912.1,20.84019655]
[1680692558947,5.52521304,1912.2,1912.1,20.84019655]
[1680692560247,5.52521304,1912.2,1912.1,20.26161725]
[1680692561367,6.08021304,1912.2,1912.1,20.26161725]
[1680692564884,6.63521304,1912.2,1912.1,20.26161725]
[1680692567588,6.63285784,1912.2,1912.1,20.26161725]
[1680692568277,7.18785784,1912.2,1912.1,20.26161725]
[1680692569755,7.18785784,1912.2,1912.1,20.24944424]
[1680692571892,7.74285784,1912.2,1912.1,20.24944424]
[1680692575318,7.74685784,1912.2,1912.1,20.24544424]
[1680692575522,8.30385784,1912.2,1912.1,20.2439183]
[1680692575789,8.30385784,1912.2,1912.1,12.0999183]
[1680692577700,8.14792052,1912.2,1912.1,12.0999183]
[1680692577880,8.14192052,1912.2,1912.1,12.10544424]
[1680692578896,8.69692052,1912.2,1912.1,12.10544424]
[1680692579672,8.69692052,1912.2,1912.1,6.59344424]
[1680692579872,8.69692052,1912.2,1912.1,4.69726339]
[1680692580093,8.69692052,1912.2,1912.1,4.69526339]
[1680692581711,8.69692052,1912.2,1912.1,4.92526339]
[1680692582428,9.25192052,1912.2,1912.1,4.92526339]
[1680692583618,9.09418457,1912.2,1912.1,4.92526339]
[1680692585692,9.64918457,1912.2,1912.1,4.92526339]
[1680692587018,9.64918457,1912.2,1912.1,5.50384269]
[1680692587198,9.64918457,1912.2,1912.1,5.50584269]
[1680692588631,9.94918457,1912.2,1912.1,5.50584269]
[1680692588833,9.78960494,1912.2,1912.1,5.50584269]
[1680692589021,10.19122658,1912.2,1912.1,5.50584269]
[1680692589756,10.19122658,1912.2,1912.1,4.92726339]
[1680692589942,10.19122658,1912.2,1912.1,4.92526339]
[1680692590454,10.19122658,1912.2,1912.1,4.66394335]
[1680692590630,10.19122658,1912.2,1912.1,4.92526339]
[1680692592363,10.74622658,1912.2,1912.1,4.92526339]
[1680692595751,11.30122658,1912.2,1912.1,4.92526339]
[1680692597654,11.14811466,1912.2,1912.1,4.92526339]
[1680692599212,11.70311466,1912.2,1912.1,4.92526339]
[1680692602011,11.70311466,1912.2,1912.1,10.43726339]
[1680692602212,11.70311466,1912.2,1912.1,10.43926339]
[1680692602719,12.25811466,1912.2,1912.1,10.43926339]
[1680692605828,12.25811466,1912.2,1912.1,3.16884598]
[1680692605981,14.03972613,1912.2,1912.1,3.16132004]
[1680692606180,14.03972613,1912.2,1912.1,0.26132004]
[1680692607127,12.81311466,1912.2,1912.1,0.26132004]
[1680692607279,12.81311466,1912.2,1912.1,0.49132004]
[1680692607722,12.81311466,1912.2,1912.1,3.49132004]
[1680692607926,12.81911466,1912.2,1912.1,3.49132004]
[1680692608698,12.81311466,1912.2,1912.1,3.49132004]
[1680692609003,12.81911466,1912.2,1912.1,3.49132004]
[1680692609514,12.81311466,1912.2,1912.1,3.49132004]
[1680692609690,14.65622613,1912.2,1912.1,3.26132004]
[1680692609887,14.65622613,1912.2,1912.1,0.26132004]
[1680692610379,14.66607794,1912.2,1912.1,0.26132004]
[1680692613182,15.22107794,1912.2,1912.1,0.26132004]
[1680692614428,15.17107794,1912.2,1912.1,0.26132004]
[1680692614625,15.16507794,1912.2,1912.1,0.26132004]
[1680692617123,15.71022613,1912.2,1912.1,0.26132004]
[1680692620638,16.26522613,1912.2,1912.1,0.26132004]
[1680692624135,16.82022613,1912.2,1912.1,0.26132004]
[1680692628662,17.37522613,1912.2,1912.1,0.26132004]
[1680692632156,17.93022613,1912.2,1912.1,0.26132004]
[1680692635001,17.92697545,1912.2,1912.1,0.26132004]
[1680692635292,16.64486398,1912.2,1912.1,0.26132004]
[1680692635493,17.19986398,1912.2,1912.1,0.26132004]
[1680692639271,17.75486398,1912.2,1912.1,0.26132004]
[1680692642190,17.76086398,1912.2,1912.1,0.05186004]
[1680692642391,17.75486398,1912.2,1912.1,0.05186004]
[1680692642597,17.75486398,1912.2,1912.1,3.0]
[1680692642789,20.09215038,1912.2,1912.0,2.20752594]
[1680692642999,20.08615038,1912.2,1912.0,2.2]
[1680692646409,20.64115038,1912.2,1912.0,2.2]
[1680692649685,21.19615038,1912.2,1912.0,2.2]
[1680692649884,2.11961504,1912.1,1912.0,2.2]
[1680692653218,2.67461504,1912.1,1912.0,2.2]
[1680692656702,3.22961504,1912.1,1912.0,2.2]
[1680692659633,3.22961504,1912.1,1912.0,2.86375378]
[1680692659838,1.11,1912.1,1912.0,5.86375378]
[1680692660143,1.11,1912.1,1912.0,5.87127972]
[1680692660293,1.665,1912.1,1912.0,5.87127972]
[1680692660634,1.665,1912.1,1912.0,5.20752594]
[1680692660824,3.74443908,1912.1,1912.0,2.20752594]
[1680692661006,3.74443908,1912.1,1912.0,2.2]
[1680692664230,4.5544447,1912.1,1912.0,2.2]
[1680692667347,4.5604447,1912.1,1911.9,2.74469136]
[1680692667556,5.1094447,1912.1,1911.9,2.73716542]
[1680692669272,0.51094447,1912.0,1911.9,2.73716542]
[1680692669465,5.1174447,1912.1,1911.9,2.73716542]
[1680692669620,5.1094447,1912.1,1911.9,2.73716542]
[1680692670351,3.03000562,1912.1,1911.9,2.86521466]
[1680692671016,3.58500562,1912.1,1911.9,2.86521466]
[1680692674132,3.58500562,1912.1,1912.0,0.23]
[1680692674536,4.14000562,1912.1,1912.0,0.23]
[1680692678069,4.69500562,1912.1,1912.0,0.23]
[1680692681258,5.25000562,1912.1,1912.0,0.23]
[1680692681457,5.25600562,1912.1,1912.0,0.23]
[1680692682001,5.25000562,1912.1,1912.0,1.15507382]
[1680692684660,5.80500562,1912.1,1912.0,1.15507382]
[1680692687196,5.81100562,1912.1,1912.0,1.15197828]
[1680692688082,6.36600562,1912.1,1912.0,1.15197828]
[1680692690532,6.36000562,1912.1,1912.0,1.15197828]
[1680692691289,6.91500562,1912.1,1912.0,1.15197828]
[1680692695134,7.47000562,1912.1,1912.0,1.15197828]
[1680692695278,10.12994526,1912.1,1912.0,0.4882245]
[1680692695478,7.47000562,1912.1,1912.0,0.4882245]
[1680692698486,8.02500562,1912.1,1912.0,0.4882245]
[1680692702631,8.58000562,1912.1,1912.0,0.4882245]
[1680692705922,9.13500562,1912.1,1912.0,0.4882245]
[1680692706122,11.96144526,1912.1,1912.0,0.4859245]
[1680692706441,11.96744526,1912.1,1912.0,0.4859245]
[1680692709031,11.96144526,1912.1,1912.0,0.4859245]
[1680692709541,12.51644526,1912.1,1912.0,0.4859245]
[1680692709742,12.52244526,1912.1,1911.9,2.86521466]
[1680692710047,1.25164453,1912.0,1911.9,0.12804924]
[1680692713164,1.80664453,1912.0,1911.9,0.12804924]
[1680692715717,1.81064453,1912.0,1911.9,0.12804924]
[1680692715920,1.81264453,1912.0,1911.9,0.12804924]
[1680692716116,1.81064453,1912.0,1911.9,0.12804924]
[1680692716350,1.80664453,1912.0,1911.9,0.12804924]
[1680692716552,2.36164453,1912.0,1911.9,0.12804924]
[1680692716739,2.36764453,1912.0,1911.9,0.12804924]
[1680692720050,2.92264453,1912.0,1911.9,0.12804924]
[1680692723308,3.16224412,1912.0,1911.9,0.12804924]
[1680692723456,3.71724412,1912.0,1911.9,0.12804924]
[1680692726871,4.27224412,1912.0,1911.9,0.12804924]
[1680692729907,4.26384388,1912.0,1911.9,0.12804924]
[1680692730396,4.81884388,1912.0,1911.9,0.12804924]
[1680692732060,4.57924429,1912.0,1911.9,0.12804924]
[1680692734500,5.13424429,1912.0,1911.9,0.12804924]
[1680692738076,5.68924429,1912.0,1911.9,0.12804924]
[1680692741705,6.24424429,1912.0,1911.9,0.12804924]
[1680692745108,6.79924429,1912.0,1911.9,0.12804924]
[1680692747368,5.55,1912.0,1911.9,0.12804924]
[1680692749207,6.105,1912.0,1911.9,0.12804924]
[1680692752012,6.10184564,1912.0,1911.9,0.12804924]
[1680692752813,6.65684564,1912.0,1911.9,0.12804924]
[1680692756210,7.21184564,1912.0,1911.9,0.12804924]
[1680692759516,7.76684564,1912.0,1911.9,0.12804924]
[1680692762988,8.32184564,1912.0,1911.9,0.12538099]
[1680692774360,10.09793361,1912.0,1911.9,0.12538099]
[1680692778089,8.32184564,1912.0,1911.9,0.12538099]
[1680692785285,8.31913092,1912.0,1911.9,0.12538099]
[1680692787970,8.31913092,1912.0,1911.9,1.27438099]
[1680692788535,8.31913092,1912.0,1911.9,2.19938099]
[1680692788736,8.31913092,1912.0,1911.9,5.20490693]
[1680692788960,8.31913092,1912.0,1911.9,5.20690693]
[1680692795409,8.31913092,1912.0,1911.9,4.28790693]
[1680692795615,8.31913092,1912.0,1911.9,4.28590693]
[1680692796715,8.31913092,1912.0,1911.9,3.36090693]
[1680692797230,8.18566132,1912.0,1911.9,3.36090693]
[1680692797891,8.18566132,1912.0,1911.9,0.35538099]
[1680692804229,8.18566132,1912.0,1911.9,0.35180418]
[1680692806283,8.18566132,1912.0,1911.9,0.12180418]
[1680692809682,9.94813086,1912.0,1911.9,0.12180418]
[1680692812744,9.94813086,1912.0,1911.9,3.12180418]
[1680692812947,9.95413086,1912.0,1911.9,0.12180418]
[1680692813199,9.94813086,1912.0,1911.9,0.12180418]
[1680692822177,9.94813086,1912.0,1911.7,5.12568623]
[1680692823259,0.99481309,1911.9,1911.7,5.12568623]
[1680692823552,9.94813086,1912.0,1911.7,5.25383742]
[1680692823553,9.95013086,1912.0,1911.7,5.25383742]
[1680692823757,9.94813086,1912.0,1911.7,5.25383742]
[1680692828787,9.94813086,1912.0,1911.7,5.24983742]
[1680692828963,9.95413086,1912.0,1911.7,5.24831148]
[1680692829160,0.99481309,1911.9,1911.7,5.24831148]
[1680692845518,0.99137231,1911.9,1911.7,5.25383742]
[1680692858362,0.99137231,1911.9,1911.7,5.24831148]
[1680692858571,0.09913723,1911.8,1911.7,5.24831148]
[1680692858756,0.99137231,1911.9,1911.7,5.24831148]
[1680692866258,8.19366132,1912.0,1911.7,5.91520816]
[1680692866458,8.19166132,1912.0,1911.7,5.91520816]
[1680692868157,8.19166132,1912.0,1911.8,0.47441164]
[1680692868376,8.18566132,1912.0,1911.9,2.075]
[1680692868685,6.91235921,1912.1,1911.9,17.58957599]
[1680692868894,15.1513973,1912.2,1912.1,8.656]
[1680692869048,13.23943897,1912.2,1912.1,13.73152594]
[1680692869388,12.12623897,1912.2,1912.1,15.95558842]
[1680692869883,12.12623897,1912.2,1912.1,15.96776143]
[1680692870506,12.12623897,1912.2,1912.1,17.49634628]
[1680692871302,11.86414897,1912.2,1912.1,17.49634628]
[1680692871510,10.16494897,1912.2,1912.1,17.49634628]
[1680692872586,9.64825897,1912.2,1912.1,17.49634628]
[1680692873301,7.98140897,1912.2,1912.1,17.49634628]
[1680692875176,7.96052897,1912.2,1912.1,17.49634628]
[1680692880485,7.95633897,1912.2,1912.1,17.49634628]
[1680692881261,7.82893896,1912.2,1912.1,21.8842557]
[1680692882621,7.82893896,1912.2,1912.1,5.44925595]
[1680692883590,7.83493896,1912.2,1912.1,5.44373001]
[1680692884313,7.83493896,1912.2,1912.1,5.67373001]
[1680692884523,7.83493896,1912.2,1912.1,4.932]
[1680692884696,7.83493896,1912.2,1912.1,4.93]
[1680692885109,8.61863286,1912.2,1912.0,0.00752594]
[1680692885312,8.62248467,1912.2,1911.8,0.00552594]
[1680692885515,0.86224847,1912.1,1911.7,2.7974851]
[1680692885906,7.84079077,1912.2,1911.7,2.7974851]
[1680692886104,7.83879077,1912.2,1911.9,0.925]
[1680692886637,7.84479077,1912.2,1911.9,0.925]
[1680692887340,7.84479077,1912.2,1912.0,0.23]
[1680692887500,8.62946985,1912.2,1912.0,0.23]
[1680692888931,8.62946985,1912.2,1911.9,0.23]
[1680692893741,8.62946985,1912.2,1911.9,0.22797109]
[1680692897124,7.84479077,1912.2,1911.9,0.22797109]
[1680692897333,7.84479077,1912.2,1911.9,0.87592847]
[1680692898046,7.84479077,1912.2,1912.0,0.037]
[1680692900252,7.83493896,1912.2,1912.0,0.037]
[1680692900420,7.83493896,1912.2,1912.1,0.01217301]
[1680692900752,7.83493896,1912.2,1912.1,0.24217301]
[1680692901115,7.83493896,1912.2,1912.1,0.94037372]
[1680692902412,7.83493896,1912.2,1912.1,0.89037372]
[1680692904228,7.83493896,1912.2,1912.1,0.19217301]
[1680692904433,7.82893896,1912.2,1912.1,0.19217301]
[1680692904630,7.82893896,1912.2,1912.1,3.19217301]
[1680692904851,7.83493896,1912.2,1912.1,0.19217301]
[1680692905020,7.82893896,1912.2,1912.1,0.19217301]
[1680692907020,7.83493896,1912.2,1912.1,0.9844869]
[1680692907443,7.83493896,1912.2,1912.1,1.59448142]
[1680692907643,7.82893896,1912.2,1912.1,1.59448142]
[1680692908159,7.82893896,1912.2,1912.1,1.33316138]
[1680692913028,7.77484897,1912.2,1912.1,1.33316138]
[1680692915092,7.77484897,1912.2,1912.1,1.59448142]
[1680692915583,7.77484897,1912.2,1912.1,0.9844869]
[1680692916357,7.77484897,1912.2,1912.1,0.26132004]
[1680692916358,8.55313387,1912.2,1912.1,0.26132004]
[1680692916562,8.55313387,1912.2,1912.1,3.26132004]
[1680692916752,8.55313387,1912.2,1912.1,0.26132004]
[1680692917649,7.77484897,1912.2,1912.1,0.26132004]
[1680692918953,7.77484897,1912.2,1912.1,0.49132004]
[1680692921959,7.73304897,1912.2,1912.1,0.49132004]
[1680692932098,7.73304897,1912.2,1912.1,0.26132004]
[1680692940632,7.73304897,1912.2,1911.9,0.00552594]
[1680692940922,7.73304897,1912.2,1911.9,0.23]
[1680692941116,7.73304897,1912.2,1911.9,0.76651979]
[1680692941310,9.04812387,1912.2,1911.9,0.76451979]
[1680692941538,9.04812387,1912.2,1911.9,0.76099385]
[1680692943521,9.05412387,1912.2,1911.9,0.76099385]
[1680692943813,9.05412387,1912.2,1911.7,1.83015119]
[1680692943814,6.512,1912.1,1911.7,1.83015119]
[1680692944026,6.42341239,1912.1,1911.6,29.932]
[1680692944226,0.6512,1912.0,1911.6,0.002]
[1680692944427,6.1593,1912.0,1911.5,0.9510795]
[1680692944639,0.61593,1911.9,1911.5,1.08306083]
[1680692945049,0.02202481,1911.8,1911.5,1.08306083]
[1680692945215,0.02802481,1911.8,1911.5,2.64002675]
[1680692945416,0.02802481,1911.8,1911.5,0.55021733]
[1680692945641,0.64362029,1911.8,1911.5,0.55021733]
[1680692947445,0.64362029,1911.8,1911.5,0.13198133]
[1680692962578,0.006,1911.8,1911.5,2.33198133]
[1680692962778,0.006,1911.9,1911.6,0.23]
[1680692963090,0.006,1911.9,1911.6,3.7187677]
[1680692963378,0.006,1911.9,1911.6,3.98008774]
[1680692963846,0.006,1911.9,1911.6,3.49132004]
[1680692964041,0.006,1912.0,1911.6,3.98008774]
[1680692965241,0.9326,1912.0,1911.6,3.98008774]
[1680692967178,0.9326,1912.0,1911.6,3.75008774]
[1680692967379,0.02202481,1911.9,1911.6,3.75008774]
[1680692968153,0.01912721,1911.9,1911.6,3.75561368]
[1680692969686,0.01912721,1911.9,1911.6,3.26684598]
[1680692969881,0.11369993,1911.9,1911.6,3.26684598]
[1680692991219,0.10974935,1911.9,1911.6,3.26684598]
[1680692996325,0.01517663,1911.9,1911.6,3.26684598]
[1680692998534,0.01517663,1911.9,1911.6,3.00552594]
[1680692999135,0.01517663,1911.9,1911.6,0.00552594]
[1680692999300,0.01517663,1911.9,1911.5,5.33950727]
[1680693000506,0.01517663,1911.9,1911.5,3.13950727]
[1680693000714,0.66055429,1911.9,1911.5,0.13750727]
[1680693000918,0.66055429,1911.9,1911.5,0.13198133]
[1680693002411,5.512,1911.8,1911.5,0.13198133]
[1680693002615,5.512,1911.8,1911.4,1.54261014]
[1680693003001,5.512,1911.8,1911.3,4.76032594]
[1680693003211,1.65337766,1911.9,1911.3,4.76032594]
[1680693003212,6.0632,1911.7,1911.3,4.75832594]
[1680693003426,6.0632,1911.7,1911.3,0.00552594]
[1680693003636,6.0632,1911.7,1911.2,0.00552594]
[1680693003831,6.0632,1911.7,1911.1,10.57204694]
[1680693004132,0.60632,1911.6,1911.2,3.0]
[1680693004334,0.61232,1911.6,1911.2,3.0]
[1680693015652,0.62749664,1911.6,1911.2,3.0]
[1680693017731,0.62749664,1911.6,1911.2,3.66340119]
[1680693018042,0.06274966,1911.5,1911.2,3.66340119]
[1680693025326,0.06274966,1911.5,1911.2,3.0]
[1680693028256,0.62749664,1911.6,1911.2,3.0]
[1680693028462,0.62749664,1911.6,1911.2,3.00552594]
[1680693028463,0.61862654,1911.6,1911.2,3.00552594]
[1680693031775,0.61862654,1911.6,1911.3,0.925]
[1680693034679,0.61862654,1911.6,1911.2,3.00552594]
[1680693035645,0.61862654,1911.6,1911.2,3.93052594]
[1680693044010,0.06186265,1911.5,1911.2,3.93052594]
[1680693048668,0.0591487,1911.5,1911.2,3.93052594]
[1680693050578,0.0591487,1911.5,1911.2,3.00552594]
[1680693050766,0.0591487,1911.5,1911.2,3.0]
[1680693052293,0.0591487,1911.5,1911.2,3.00552594]
[1680693059320,0.0591487,1911.5,1911.2,3.0]
[1680693069094,0.05697783,1911.5,1911.2,3.0]
[1680693072638,0.61862654,1911.6,1911.2,3.0]
[1680693072946,5.2348,1911.7,1911.2,3.66340119]
[1680693073108,5.2328,1911.7,1911.2,3.66892713]
[1680693074625,5.2328,1911.7,1911.2,4.59392713]
[1680693075540,10.7448,1911.7,1911.2,3.66892713]
[1680693075736,10.7448,1911.7,1911.2,3.00552594]
[1680693075937,10.7448,1911.7,1911.2,3.0]
[1680693079040,0.01517664,1911.6,1911.2,3.0]
[1680693079268,6.6031743,1911.6,1911.2,3.0]
[1680693079404,6.6031743,1911.6,1911.2,3.00552594]
[1680693082008,6.6031743,1911.6,1911.3,3.0]
[1680693082534,6.6031743,1911.6,1911.2,0.00752594]
[1680693082732,6.6031743,1911.6,1911.1,5.33837793]
[1680693082936,0.66031743,1911.5,1911.1,5.33837793]
[1680693087058,0.66031743,1911.5,1911.1,3.13837793]
[1680693087208,0.66031743,1911.5,1911.1,3.13637793]
[1680693087963,0.66031743,1911.5,1911.1,3.13085199]
[1680693089927,0.65820613,1911.5,1911.1,3.13637793]
[1680693090227,0.06603174,1911.4,1911.1,3.13637793]
[1680693092964,0.65820613,1911.5,1911.1,3.13637793]
[1680693113604,0.65490168,1911.5,1911.1,3.13637793]
[1680693114012,6.16690168,1911.5,1911.1,3.13637793]
[1680693116301,0.925,1911.4,1911.1,3.13637793]
[1680693116461,0.925,1911.4,1911.0,3.00752594]
[1680693116661,0.0925,1911.3,1911.0,3.00552594]
[1680693117473,0.0925,1911.3,1911.0,3.13517724]
[1680693118398,0.01517664,1911.4,1911.0,3.13517724]
[1680693121494,0.01517664,1911.4,1911.0,0.13517724]
[1680693121736,0.01517664,1911.4,1910.9,5.09971066]
[1680693124890,0.02117664,1911.4,1910.9,5.09162667]
[1680693125088,6.15138447,1911.4,1910.9,5.09162667]
[1680693125300,6.15138447,1911.4,1910.9,5.2229569]
[1680693146335,0.006,1911.4,1911.1,0.925]
[1680693146700,0.006,1911.5,1911.1,0.925]
[1680693148644,5.512,1911.6,1911.1,0.93052594]
[1680693148935,6.0632,1911.5,1911.1,0.93052594]
[1680693152246,6.0632,1911.5,1911.1,0.93052594]
[1680693153217,5.514,1911.6,1911.1,0.93052594]
[1680693153404,5.512,1911.6,1911.1,0.93052594]
[1680693157843,5.25459109,1911.7,1911.1,0.93052594]
[1680693158044,10.75997664,1911.7,1911.2,0.925]
[1680693158243,12.83088575,1911.7,1911.2,0.925]
[1680693158615,12.83088575,1911.7,1911.1,0.93052594]
[1680693158815,12.83088575,1911.7,1911.1,0.925]
[1680693171634,12.82778288,1911.7,1911.1,0.925]
[1680693171834,1.28277829,1911.6,1911.1,0.93052594]
[1680693187479,7.31778288,1911.7,1911.1,0.93052594]
[1680693187683,5.22969713,1911.7,1911.2,1.155]
[1680693187904,5.22969713,1911.7,1911.2,1.16052594]
[1680693193102,5.22687791,1911.7,1911.2,1.16052594]
[1680693207018,5.22687791,1911.7,1911.2,1.16764303]
[1680693209195,5.22687791,1911.7,1911.3,0.925]
[1680693209396,5.22687791,1911.7,1911.4,0.23]
[1680693209996,5.22687791,1911.7,1911.3,0.23]
[1680693214411,5.22687791,1911.7,1911.3,0.76084474]
[1680693214612,5.22687791,1911.7,1911.3,0.23]
[1680693214815,5.7497657,1911.7,1911.3,0.23]
[1680693215926,5.7459081,1911.7,1911.3,0.23]
[1680693217213,5.22302031,1911.7,1911.3,0.23]
[1680693220223,5.22302031,1911.7,1911.2,0.24264303]
[1680693224436,10.73502031,1911.7,1911.2,0.01264303]
[1680693233844,10.73963476,1911.7,1911.2,0.00711709]
[1680693236328,1.07396348,1911.6,1911.2,0.00711709]
[1680693236527,1.07857793,1911.6,1911.2,0.00711709]
[1680693237643,1.07396348,1911.6,1911.2,0.00711709]
[1680693237843,1.07857793,1911.6,1911.2,0.00711709]
[1680693239816,1.07396348,1911.6,1911.2,0.00711709]
[1680693240016,1.07857793,1911.6,1911.2,0.00711709]
[1680693240228,0.10785779,1911.5,1911.2,0.00711709]
[1680693241359,0.10785779,1911.5,1911.1,1.925]
[1680693243440,0.10785779,1911.5,1911.1,1.0]
[1680693244219,1.07857793,1911.6,1911.1,1.925]
[1680693245619,1.07857793,1911.6,1911.1,8.5448]
[1680693245822,1.07857793,1911.6,1911.2,3.0]
[1680693253383,6.59057793,1911.6,1911.2,3.0]
[1680693258165,6.59057793,1911.6,1911.2,3.00426684]
[1680693258166,6.58302569,1911.6,1911.2,3.00426684]